bitfinex/quotes_SOLUSD_20250223
["timestamp","ask_amount","ask_price","bid_price","bid_amount"]
[1740300913258,81.03,172.39,172.34,20.3086]
[1740300913673,0.03,172.39,172.34,20.3086]
[1740300914059,0.03,172.39,172.34,31.88288655]
[1740300915180,0.03,172.39,172.34,20.3086]
[1740300915478,11.57428655,172.38,172.34,5.8024]
[1740300915683,0.03,172.39,172.34,20.3086]
[1740300915982,0.03,172.39,172.34,31.88288655]
[1740300916492,11.57428655,172.38,172.34,20.3086]
[1740300917287,11.60428655,172.39,172.34,20.3086]
[1740300918455,11.57428655,172.38,172.34,20.3086]
[1740300918657,11.57428655,172.38,172.34,5.8024]
[1740300926185,92.60428655,172.39,172.34,5.8024]
[1740300926491,81.03,172.39,172.34,31.88288655]
[1740300928089,81.03,172.39,172.35,11.57428655]
[1740300928677,81.03,172.39,172.36,5.8018]
[1740300931494,0.03,172.39,172.36,5.8018]
[1740300934795,0.03,172.39,172.35,5.8021]
[1740300936797,0.03,172.39,172.35,17.37638655]
[1740300938100,0.03,172.39,172.36,11.57428655]
[1740300938878,0.03,172.39,172.37,11.57428655]
[1740300939084,0.03,172.39,172.38,11.57428655]
[1740300940178,0.03,172.39,172.38,17.37538655]
[1740300942302,0.03,172.39,172.38,18.91438655]
[1740300942473,0.03,172.4,172.38,25.17828655]
[1740300942673,0.03,172.4,172.39,11.57428655]
[1740300944196,0.03,172.4,172.39,17.37508655]
[1740300951407,0.0001,172.4,172.39,36.02473541]
[1740300958429,0.0001,172.4,172.39,36.08773541]
[1740300960799,0.0001,172.4,172.39,37.08773541]
[1740300961106,0.0001,172.4,172.39,38.08773541]
[1740300961303,0.0001,172.4,172.39,258.58773541]
[1740300961626,0.0001,172.4,172.39,257.58773541]
[1740300962326,0.0001,172.4,172.39,256.58773541]
[1740300967131,0.0001,172.4,172.39,117.98773541]
[1740300968114,0.0001,172.4,172.39,118.98773541]
[1740300969534,0.0001,172.43,172.42,38.64964886]
[1740300969738,0.0001,172.43,172.42,50.22393541]
[1740300970934,0.0001,172.43,172.42,56.02363541]
[1740300974067,0.0001,172.43,172.42,37.37398655]
[1740300974274,0.0001,172.43,172.42,25.7997]
[1740300974564,0.0001,172.43,172.42,5.7997]
[1740300976044,0.0001,172.43,172.4,81.9]
[1740300976249,0.0001,172.43,172.41,5.8001]
[1740300977436,0.0001,172.43,172.41,17.37438655]
[1740300979976,0.0001,172.43,172.41,5.8001]
[1740300985075,0.0001,172.43,172.39,5.8638]
[1740300990272,11.57438655,172.43,172.39,5.8638]
[1740300991168,11.57438655,172.43,172.39,0.063]
[1740300992574,0.0001,172.43,172.39,0.063]
[1740300993953,0.0001,172.43,172.39,5.8638]
[1740300994383,0.0001,172.43,172.39,17.43808655]
[1740300995660,0.0001,172.43,172.39,5.8638]
[1740301006183,11.57438655,172.43,172.39,5.8638]
[1740301006398,11.57428655,172.4,172.39,0.063]
[1740301009103,11.57428655,172.4,172.39,0.04111016]
[1740301010303,1.5252,172.39,172.36,0.063]
[1740301010605,11.57428655,172.37,172.36,0.063]
[1740301011404,17.37568655,172.37,172.36,0.063]
[1740301012784,11.57428655,172.37,172.36,0.063]
[1740301014488,81.0,172.38,172.36,0.063]
[1740301014694,92.57428655,172.37,172.36,0.063]
[1740301017716,81.0,172.37,172.36,0.063]
[1740301020608,11.57428655,172.38,172.36,0.063]
[1740301021617,11.57428655,172.37,172.36,0.063]
[1740301022518,11.57428655,172.38,172.36,0.063]
[1740301022831,11.57428655,172.39,172.36,0.063]
[1740301023142,11.57428655,172.38,172.36,0.063]
[1740301025930,0.03,172.4,172.36,0.063]
[1740301026135,11.57428655,172.38,172.36,0.063]
[1740301028933,11.57428655,172.39,172.36,0.063]
[1740301036509,11.60428655,172.4,172.36,20.063]
[1740301036822,0.03,172.4,172.36,31.63728655]
[1740301037519,0.03,172.4,172.37,11.57428655]
[1740301038621,0.03,172.4,172.38,5.8011]
[1740301039947,0.03,172.4,172.37,5.8014]
[1740301040245,11.60428655,172.4,172.37,5.8014]
[1740301041747,0.03,172.4,172.37,5.8014]
[1740301049054,0.03,172.4,172.37,17.37568655]
[1740301049234,0.03,172.4,172.39,11.57428655]
[1740301049631,0.03,172.4,172.38,30.22393541]
[1740301051560,0.03,172.4,172.39,5.8008]
[1740301064784,0.03,172.4,172.39,5.8638]
[1740301084513,0.0001,172.4,172.39,117.98773541]
[1740301088778,0.0001,172.4,172.39,106.41344886]
[1740301090017,0.0001,172.4,172.39,5.8638]
[1740301096216,0.0001,172.4,172.39,0.063]
[1740301096796,11.57438655,172.4,172.39,0.063]
[1740301098428,0.0001,172.4,172.39,0.063]
[1740301100108,11.57438655,172.4,172.39,0.063]
[1740301100903,0.0001,172.4,172.39,0.063]
[1740301102235,0.0001,172.4,172.39,20.063]
[1740301102425,0.0001,172.4,172.39,50.28693541]
[1740301102820,0.0001,172.4,172.39,31.63728655]
[1740301103139,0.0001,172.4,172.39,25.8638]
[1740301114473,0.0001,172.4,172.39,37.43808655]
[1740301138988,0.0001,172.4,172.39,56.08773541]
[1740301142496,0.0001,172.4,172.39,137.98773541]
[1740301142807,0.0001,172.4,172.39,147.05885384]
[1740301144606,0.0001,172.4,172.39,137.98773541]
[1740301146975,0.0001,172.4,172.39,119.33808655]
[1740301155783,0.0001,172.4,172.39,137.98773541]
[1740301162524,0.0001,172.43,172.42,20.0]
[1740301162699,0.0001,172.43,172.42,56.02363541]
[1740301167620,0.0001,172.43,172.42,58.91151289]
[1740301172321,0.0001,172.43,172.42,140.81151289]
[1740301184852,0.0001,172.43,172.42,145.17151289]
[1740301208355,0.0001,172.43,172.42,154.24263132]
[1740301235774,0.0001,172.43,172.42,466.24263132]
[1740301237289,0.0001,172.43,172.42,154.24263132]
[1740301246807,0.0001,172.43,172.42,156.50022429]
[1740301247403,0.0001,172.43,172.42,154.24263132]
[1740301248588,0.0001,172.43,172.42,145.17151289]
[1740301248891,0.0001,172.43,172.42,147.4251784]
[1740301249096,0.0001,172.43,172.42,145.17151289]
[1740301256097,0.0001,172.43,172.42,457.17151289]
[1740301256623,0.0001,172.43,172.42,475.31374975]
[1740301259120,0.0001,172.43,172.42,457.17151289]
[1740301259329,0.0001,172.43,172.42,459.5134338]
[1740301259725,0.0001,172.43,172.42,457.17151289]
[1740301261828,0.0001,172.43,172.42,475.44767792]
[1740301267814,0.0001,172.43,172.42,522.74482412]
[1740301268024,0.03,172.49,172.48,11.57428655]
[1740301269736,0.03,172.49,172.48,17.37198655]
[1740301271131,82.5454,172.55,172.48,362.51603541]
[1740301271330,82.5454,172.55,172.52,11.57428655]
[1740301271730,82.5454,172.55,172.54,11.57428655]
[1740301271731,1.5454,172.55,172.54,11.57428655]
[1740301273227,1.5454,172.55,172.54,17.36998655]
[1740301274814,1.5454,172.55,172.54,329.36998655]
[1740301275241,0.03,172.56,172.54,329.36998655]
[1740301275454,0.03,172.56,172.55,11.57428655]
[1740301277731,0.03,172.56,172.55,17.36968655]
[1740301278346,0.03,172.56,172.55,36.01933541]
[1740301278736,0.03,172.56,172.55,348.01933541]
[1740301280552,0.0001,172.56,172.55,348.01933541]
[1740301280724,0.0001,172.56,172.55,36.01933541]
[1740301280925,0.0001,172.56,172.55,117.91933541]
[1740301281727,0.0001,172.56,172.55,120.78112416]
[1740301283850,0.0001,172.56,172.55,432.78112416]
[1740301291050,0.0001,172.56,172.55,8.65718875]
[1740301291453,0.0001,172.56,172.53,5.7957]
[1740301291454,11.57438655,172.56,172.53,5.7957]
[1740301292164,0.0001,172.56,172.53,5.7957]
[1740301293765,11.57428655,172.55,172.52,87.6964]
[1740301296667,11.57428655,172.55,172.53,0.063]
[1740301302581,11.57438655,172.56,172.53,0.063]
[1740301308766,0.0001,172.56,172.53,0.063]
[1740301310548,11.57438655,172.56,172.53,0.063]
[1740301312966,0.0001,172.56,172.53,0.063]
[1740301319350,0.0001,172.56,172.53,5.859]
[1740301325879,0.0001,172.56,172.53,0.063]
[1740301326179,11.57438655,172.56,172.53,0.063]
[1740301326759,0.0001,172.56,172.53,0.063]
[1740301339082,11.57438655,172.56,172.53,0.063]
[1740301339293,11.57428655,172.55,172.53,0.063]
[1740301340088,11.57428655,172.54,172.53,0.063]
[1740301341788,11.57428655,172.55,172.53,0.063]
[1740301342377,11.57428655,172.54,172.53,0.063]
[1740301354085,17.36998655,172.54,172.53,0.063]
[1740301358093,11.57428655,172.54,172.53,0.063]
[1740301360832,4.3201,172.56,172.53,0.063]
[1740301361131,11.57428655,172.54,172.53,0.063]
[1740301375636,5.7955,172.55,172.53,0.063]
[1740301375820,11.57428655,172.54,172.53,0.063]
[1740301387360,0.0001,172.56,172.53,0.063]
[1740301387653,11.57428655,172.54,172.53,0.063]
[1740301389253,0.0001,172.56,172.53,0.063]
[1740301389419,11.57438655,172.56,172.53,0.063]
[1740301389626,11.57428655,172.55,172.53,0.063]
[1740301390754,11.57428655,172.54,172.53,0.063]
[1740301394349,63.66713275,172.54,172.53,0.063]
[1740301394940,1.0,172.51,172.49,0.063]
[1740301395147,11.57428655,172.5,172.49,0.063]
[1740301395351,1.0,172.49,172.42,12.031]
[1740301395547,11.57428655,172.43,172.42,12.031]
[1740301396237,11.57428655,172.43,172.41,14.93128154]
[1740301396445,11.57428655,172.42,172.41,14.93128154]
[1740301396649,11.57428655,172.42,172.41,5.8001]
[1740301396973,11.57428655,172.42,172.4,5.8634]
[1740301397761,11.57428655,172.44,172.4,5.8634]
[1740301398062,11.57428655,172.45,172.4,11.63728655]
[1740301398372,11.57428655,172.45,172.4,14.5641]
[1740301399661,11.57428655,172.44,172.4,14.5641]
[1740301399845,11.57428655,172.44,172.4,20.3645]
[1740301400565,11.57428655,172.44,172.4,5.8634]
[1740301400753,81.0,172.47,172.4,20.3645]
[1740301400955,11.57428655,172.45,172.4,31.93878655]
[1740301401471,11.57428655,172.44,172.4,25.8634]
[1740301402165,11.57428655,172.45,172.4,25.8634]
[1740301403567,11.57428655,172.45,172.4,37.43768655]
[1740301403862,81.0,172.44,172.4,37.43768655]
[1740301405565,81.0,172.44,172.4,51.93878655]
[1740301409765,11.57428655,172.46,172.4,51.93878655]
[1740301409961,11.57428655,172.46,172.41,11.57428655]
[1740301410140,81.0,172.49,172.41,11.57428655]
[1740301410141,81.0,172.49,172.45,11.57428655]
[1740301410341,92.57428655,172.55,172.48,11.57428655]
[1740301410545,92.57428655,172.54,172.48,11.57428655]
[1740301410753,81.0,172.54,172.49,11.57428655]
[1740301410952,81.0,172.54,172.5,11.57428655]
[1740301411159,0.0001,172.56,172.52,5.7964]
[1740301411346,0.0001,172.56,172.52,17.37068655]
[1740301411862,0.0001,172.56,172.52,5.7964]
[1740301412071,11.57438655,172.56,172.51,5.7967]
[1740301414547,0.0001,172.56,172.53,11.57428655]
[1740301414746,0.0001,172.56,172.54,11.57428655]
[1740301415375,0.0001,172.56,172.53,11.57428655]
[1740301416669,0.0001,172.56,172.53,5.796]
[1740301418173,11.57428655,172.55,172.51,5.7964]
[1740301421484,11.57428655,172.54,172.5,1.5563]
[1740301422270,11.57428655,172.54,172.5,7.3533]
[1740301422900,11.57428655,172.54,172.49,12.2703]
[1740301424278,11.57428655,172.53,172.49,6.473]
[1740301424470,11.57428655,172.53,172.49,0.063]
[1740301424674,81.0,172.52,172.49,0.063]
[1740301424875,81.0,172.52,172.49,5.8603]
[1740301425754,92.57428655,172.52,172.49,0.063]
[1740301425958,11.57428655,172.51,172.49,0.063]
[1740301426176,92.57428655,172.51,172.49,0.063]
[1740301426553,11.57428655,172.5,172.49,0.063]
[1740301432864,17.37138655,172.5,172.49,0.063]
[1740301439206,17.40138655,172.5,172.49,0.063]
[1740301446328,37.05103541,172.5,172.49,0.063]
[1740301448803,38.05103541,172.5,172.49,0.063]
[1740301457127,18.64964886,172.47,172.41,8.0794]
[1740301457431,11.57428655,172.42,172.41,8.0794]
[1740301459316,11.57428655,172.43,172.41,8.0794]
[1740301459517,11.57428655,172.42,172.41,8.0794]
[1740301460452,11.57428655,172.43,172.41,8.0794]
[1740301463530,92.57428655,172.42,172.4,0.063]
[1740301463907,11.57428655,172.41,172.4,0.063]
[1740301482945,17.37438655,172.41,172.4,0.063]
[1740301483147,41.48403541,172.41,172.4,0.063]
[1740301486959,19.64964886,172.39,172.37,0.063]
[1740301487156,11.57428655,172.38,172.37,0.063]
[1740301487329,17.37538655,172.38,172.37,0.063]
[1740301487643,37.02503541,172.38,172.37,0.063]
[1740301500666,38.02503541,172.38,172.37,0.063]
[1740301506954,37.02503541,172.38,172.37,0.063]
[1740301508955,11.57428655,172.38,172.37,0.063]
[1740301510954,11.60428655,172.39,172.37,0.063]
[1740301511872,11.57428655,172.38,172.37,0.063]
[1740301512256,37.02503541,172.38,172.37,0.063]
[1740301513354,38.02503541,172.38,172.37,0.063]
[1740301514982,37.02503541,172.38,172.37,0.063]
[1740301518282,39.99055865,172.38,172.37,0.063]
[1740301529399,40.99055865,172.38,172.37,0.063]
[1740301531894,40.99055865,172.38,172.31,0.063]
[1740301531895,1.0,172.33,172.31,0.063]
[1740301532067,11.57428655,172.32,172.31,0.063]
[1740301532266,30.22393541,172.32,172.31,0.063]
[1740301532473,36.02703541,172.32,172.31,0.063]
[1740301532784,117.02703541,172.32,172.31,0.063]
[1740301535291,37.02703541,172.32,172.31,0.063]
[1740301536581,1.0,172.3,172.29,0.063]
[1740301536777,32.22393541,172.3,172.29,0.063]
[1740301537194,6.8048,172.27,172.26,0.063]
[1740301537392,87.68588161,172.27,172.26,0.063]
[1740301538989,41.38873541,172.27,172.26,0.063]
[1740301539190,42.38873541,172.27,172.26,0.063]
[1740301539491,87.68588161,172.27,172.26,0.063]
[1740301540290,88.68588161,172.27,172.26,0.063]
[1740301544878,20.64964886,172.26,172.25,0.063]
[1740301545081,78.52108161,172.26,172.25,0.063]
[1740301545689,20.64964886,172.25,172.24,0.063]
[1740301545891,38.02943541,172.25,172.24,0.063]
[1740301547491,37.02943541,172.25,172.24,0.063]
[1740301551988,31.22393541,172.25,172.24,0.063]
[1740301554207,30.22393541,172.25,172.24,0.063]
[1740301554415,11.57428655,172.25,172.24,0.063]
[1740301554588,11.57428655,172.26,172.24,0.063]
[1740301554904,11.57428655,172.26,172.25,6.3858]
[1740301555483,11.57428655,172.27,172.25,6.3858]
[1740301555905,11.57428655,172.29,172.25,6.3858]
[1740301556285,11.57428655,172.29,172.26,5.8051]
[1740301557013,30.22393541,172.3,172.26,5.8051]
[1740301557397,11.57428655,172.31,172.26,5.8051]
[1740301557789,30.22393541,172.31,172.26,5.8051]
[1740301558297,11.57428655,172.3,172.26,5.8051]
[1740301558489,81.0,172.28,172.26,5.8051]
[1740301560822,97.95428655,172.27,172.24,0.063]
[1740301560991,30.22393541,172.25,172.24,0.063]
[1740301561391,11.57428655,172.25,172.24,0.063]
[1740301561588,92.57428655,172.26,172.24,0.063]
[1740301561793,81.0,172.26,172.24,5.8687]
[1740301564220,92.57428655,172.26,172.24,5.8687]
[1740301564426,81.0,172.25,172.24,5.8687]
[1740301567449,81.0,172.25,172.24,0.063]
[1740301569047,81.03,172.25,172.24,0.063]
[1740301569553,92.60428655,172.25,172.24,0.063]
[1740301569714,81.03,172.25,172.24,0.063]
[1740301570425,0.03,172.25,172.24,0.063]
[1740301577533,11.60428655,172.25,172.24,0.063]
[1740301580132,36.05943541,172.25,172.24,0.063]
[1740301585239,37.05943541,172.25,172.24,0.063]
[1740301585443,38.05943541,172.25,172.24,0.063]
[1740301587945,37.05943541,172.25,172.24,0.063]
[1740301588263,38.05943541,172.25,172.24,0.063]
[1740301591975,38.05943541,172.25,172.24,0.0001]
[1740301595775,38.05943541,172.25,172.21,0.0001]
[1740301595776,40.64964886,172.22,172.21,0.0001]
[1740301596075,56.56393541,172.22,172.21,0.0001]
[1740301597391,62.37043541,172.22,172.21,0.0001]
[1740301602680,61.37043541,172.22,172.21,0.0001]
[1740301602869,62.37043541,172.22,172.21,0.0001]
[1740301605196,61.37043541,172.22,172.21,0.0001]
[1740301605488,62.37043541,172.22,172.21,0.0001]
[1740301610564,60.37043541,172.22,172.21,0.0001]
[1740301610898,40.37043541,172.22,172.21,0.0001]
[1740301611263,41.37043541,172.22,172.21,0.0001]
[1740301612691,40.37043541,172.22,172.21,0.0001]
[1740301613990,36.03043541,172.22,172.21,0.0001]
[1740301615194,36.06043541,172.22,172.21,0.0001]
[1740301618499,0.03,172.22,172.21,0.0001]
[1740301620282,0.03,172.22,172.21,17.73638655]
[1740301621374,0.03,172.22,172.21,23.54318655]
[1740301621874,0.03,172.22,172.21,17.73638655]
[1740301622096,0.03,172.22,172.21,6.1621]
[1740301624789,0.03,172.22,172.21,23.54318655]
[1740301625098,0.03,172.22,172.21,6.1621]
[1740301629092,11.60428655,172.22,172.21,0.0001]
[1740301631692,17.41078655,172.22,172.21,0.0001]
[1740301641085,36.06043541,172.22,172.21,0.0001]
[1740301641289,37.06043541,172.22,172.21,0.0001]
[1740301645210,38.06043541,172.22,172.21,0.0001]
[1740301646312,41.04024095,172.22,172.21,0.0001]
[1740301647120,20.64964886,172.21,172.2,0.0001]
[1740301647322,32.22393541,172.21,172.2,0.0001]
[1740301648226,38.03073541,172.21,172.2,0.0001]
[1740301657129,1.0,172.16,172.12,8.0883]
[1740301657428,30.22393541,172.14,172.12,6.497]
[1740301659535,36.03313541,172.14,172.12,6.497]
[1740301663039,36.03313541,172.14,172.08,13.5874]
[1740301665933,11.57428655,172.14,172.08,13.5874]
[1740301666141,11.57428655,172.16,172.1,11.57428655]
[1740301667244,11.57428655,172.15,172.09,11.57428655]
[1740301668540,11.57428655,172.14,172.08,39.68978655]
[1740301670943,11.57428655,172.14,172.08,13.5874]
[1740301672839,6.82924722,172.18,172.08,25.16168655]
[1740301673028,11.57428655,172.14,172.09,11.57428655]
[1740301673232,11.57428655,172.15,172.09,11.57428655]
[1740301674132,11.57428655,172.15,172.1,5.8105]
[1740301674327,11.57428655,172.14,172.1,5.8105]
[1740301675661,11.57428655,172.14,172.08,19.35048655]
[1740301675827,11.57428655,172.14,172.09,5.8109]
[1740301687455,11.57428655,172.15,172.09,5.8109]
[1740301690782,11.57428655,172.14,172.09,5.8109]
[1740301691776,11.57428655,172.15,172.09,5.8109]
[1740301694171,11.57428655,172.15,172.09,20.3381]
[1740301694473,11.57428655,172.16,172.09,31.91238655]
[1740301695759,11.57428655,172.16,172.11,5.8102]
[1740301696476,81.0,172.15,172.12,11.57428655]
[1740301696675,81.0,172.15,172.13,6.5385]
[1740301698071,92.57428655,172.15,172.13,6.5385]
[1740301698677,81.0,172.15,172.13,6.5385]
[1740301699378,92.57428655,172.15,172.13,6.5385]
[1740301700475,11.57428655,172.14,172.13,0.063]
[1740301702287,17.38348655,172.14,172.13,0.063]
[1740301703489,11.57428655,172.14,172.13,0.063]
[1740301704277,18.64964886,172.17,172.13,0.063]
[1740301704586,11.57428655,172.14,172.13,0.063]
[1740301706687,17.38348655,172.14,172.13,0.063]
[1740301706869,11.57428655,172.14,172.13,0.063]
[1740301721521,11.60428655,172.14,172.13,0.063]
[1740301726492,17.41348655,172.14,172.13,0.063]
[1740301727825,36.06313541,172.14,172.13,0.063]
[1740301742229,37.06313541,172.14,172.13,0.063]
[1740301767452,36.06313541,172.14,172.13,0.063]
[1740301785037,40.38313541,172.14,172.13,0.063]
[1740301798964,41.38313541,172.14,172.13,0.063]
[1740301799264,40.38313541,172.14,172.13,0.063]
[1740301808584,41.78112432,172.14,172.13,0.063]
[1740301808793,48.21238263,172.14,172.13,0.063]
[1740301809086,49.21238263,172.14,172.13,0.063]
[1740301817186,1.0,172.12,172.09,6.2634]
[1740301817389,18.64964886,172.09,172.06,0.063]
[1740301817598,11.57428655,172.07,172.06,0.063]
[1740301818901,36.03543541,172.07,172.06,0.063]
[1740301819373,37.03543541,172.07,172.06,0.063]
[1740301820072,36.03543541,172.07,172.06,0.063]
[1740301821476,37.03543541,172.07,172.06,0.063]
[1740301824396,36.03543541,172.07,172.06,0.063]
[1740301825392,37.03543541,172.07,172.06,0.063]
[1740301828499,21.0,172.04,172.03,0.063]
[1740301828679,50.22393541,172.04,172.03,0.063]
[1740301829382,51.22393541,172.04,172.03,0.063]
[1740301829575,50.22393541,172.04,172.03,0.063]
[1740301829781,56.03653541,172.04,172.03,0.063]
[1740301830203,57.03653541,172.04,172.03,0.063]
[1740301834105,59.91784995,172.04,172.03,0.063]
[1740301843789,11.57428655,172.05,172.03,0.063]
[1740301843988,15.5269,172.1,172.03,0.063]
[1740301844189,11.57428655,172.07,172.03,0.063]
[1740301844905,11.57428655,172.06,172.03,0.063]
[1740301845112,11.57428655,172.04,172.03,0.063]
[1740301845604,11.57428655,172.05,172.03,0.063]
[1740301846810,17.38658655,172.05,172.03,0.063]
[1740301847011,11.57428655,172.04,172.03,0.063]
[1740301853009,17.38658655,172.05,172.03,0.063]
[1740301853199,11.57428655,172.05,172.03,0.063]
[1740301854009,5.842,172.06,172.03,0.063]
[1740301854010,0.03,172.06,172.03,0.063]
[1740301856391,11.60428655,172.06,172.03,0.063]
[1740301856712,11.57428655,172.05,172.03,0.063]
[1740301857607,11.57428655,172.04,172.03,0.063]
[1740301858693,17.38688655,172.04,172.03,0.063]
[1740301859088,11.60428655,172.06,172.03,0.063]
[1740301860297,17.41628655,172.06,172.03,0.063]
[1740301861007,11.60428655,172.06,172.03,0.063]
[1740301867507,17.41618655,172.06,172.03,0.063]
[1740301867708,11.60428655,172.06,172.03,0.063]
[1740301868723,0.03,172.06,172.03,0.063]
[1740301869022,11.60428655,172.06,172.03,0.063]
[1740301869733,17.41618655,172.06,172.03,0.063]
[1740301870225,11.57428655,172.05,172.03,0.063]
[1740301870420,5.8419,172.06,172.03,0.063]
[1740301870421,11.57428655,172.04,172.03,0.063]
[1740301871030,30.22393541,172.04,172.03,0.063]
[1740301872801,36.03653541,172.04,172.03,0.063]
[1740301873921,36.03653541,172.04,172.03,0.0001]
[1740301874219,36.03653541,172.04,172.02,0.0001]
[1740301874220,18.64964886,172.03,172.02,0.0001]
[1740301874426,18.64964886,172.03,171.95,0.063]
[1740301874427,36.54393541,172.03,171.95,0.063]
[1740301874629,11.57428655,171.96,171.95,0.063]
[1740301875948,11.57428655,171.97,171.95,0.063]
[1740301876940,11.57428655,171.98,171.95,0.063]
[1740301877141,14.5337,172.02,171.95,0.063]
[1740301877142,5.8132,172.02,171.95,0.063]
[1740301877312,11.57428655,172.0,171.95,0.063]
[1740301877507,11.57428655,171.99,171.95,0.063]
[1740301878410,11.57428655,171.98,171.95,0.063]
[1740301878607,11.57428655,171.96,171.95,0.063]
[1740301880331,36.03923541,171.96,171.95,0.063]
[1740301881537,11.57428655,171.96,171.95,0.063]
[1740301883834,15.89428655,171.97,171.95,0.063]
[1740301884007,81.0,171.97,171.95,11.63728655]
[1740301884205,81.0,171.97,171.96,1.531]
[1740301886842,81.0,171.97,171.96,7.3463]
[1740301887039,81.0,171.97,171.96,25.52048655]
[1740301887226,81.0,172.01,171.96,25.52048655]
[1740301887408,81.0,172.01,171.97,11.57428655]
[1740301889347,81.0,172.01,171.97,17.38908655]
[1740301889524,81.0,172.0,171.96,13.9461]
[1740301889721,81.0,172.0,171.96,25.52038655]
[1740301891944,81.0,172.0,171.97,11.57428655]
[1740301892520,81.0,172.0,171.99,11.57428655]
[1740301892914,0.03,172.02,171.99,11.57428655]
[1740301893115,0.03,172.02,172.0,11.57428655]
[1740301893922,0.03,172.02,172.01,11.57428655]
[1740301896626,0.03,172.02,172.01,17.38788655]
[1740301899328,0.03,172.02,172.0,11.57428655]
[1740301902075,0.03,172.02,172.0,17.38788655]
[1740301904050,0.03,172.02,172.01,19.62038655]
[1740301905181,0.03,172.02,172.01,25.43398655]
[1740301909479,0.03,172.02,172.01,13.8597]
[1740301916691,0.03,172.02,172.01,12.2484]
[1740301919900,0.03,172.02,172.01,5.8136]
[1740301920607,0.03,172.02,171.99,11.57428655]
[1740301920783,0.03,172.02,171.99,17.38848655]
[1740301923468,0.03,172.02,171.98,5.8145]
[1740301924306,0.03,172.02,171.98,5.8775]
[1740301926507,81.03,172.02,171.98,5.8775]
[1740301926680,81.0,172.01,171.98,0.063]
[1740301927903,92.57428655,172.01,171.98,0.063]
[1740301928486,81.0,172.01,171.98,0.063]
[1740301929492,81.0,172.01,171.98,11.63728655]
[1740301930306,81.0,172.01,171.99,17.38848655]
[1740301932414,0.03,172.02,171.99,17.38848655]
[1740301934007,0.03,172.02,171.99,5.8142]
[1740301934620,11.57428655,172.0,171.98,0.063]
[1740301934803,11.57428655,171.99,171.98,0.063]
[1740301935119,11.57428655,172.0,171.98,0.063]
[1740301935822,11.57428655,171.99,171.98,0.063]
[1740301944107,17.38848655,171.99,171.98,0.063]
[1740301944801,36.03813541,171.99,171.98,0.063]
[1740301952602,11.57428655,171.99,171.98,0.063]
[1740301958708,11.57428655,172.0,171.98,0.063]
[1740301959108,11.57428655,172.01,171.98,0.063]
[1740301959620,97.52108161,171.99,171.98,0.063]
[1740301960641,19.64964886,171.98,171.96,0.063]
[1740301960810,34.54393541,171.97,171.96,0.063]
[1740301961013,35.54393541,171.97,171.96,0.063]
[1740301961441,34.54393541,171.97,171.96,0.063]
[1740301962114,40.35883541,171.97,171.96,0.063]
[1740301962442,41.35883541,171.97,171.96,0.063]
[1740301962625,40.35883541,171.97,171.96,0.063]
[1740301963140,41.35883541,171.97,171.96,0.063]
[1740301963318,40.35883541,171.97,171.96,0.063]
[1740301963637,41.35883541,171.97,171.96,0.063]
[1740301964339,40.35883541,171.97,171.96,0.063]
[1740301965448,41.35883541,171.97,171.96,0.063]
[1740301966237,30.22393541,171.96,171.95,0.063]
[1740301967041,36.03923541,171.96,171.95,0.063]
[1740301967213,11.57428655,171.89,171.85,6.096]
[1740301967822,11.57428655,171.88,171.85,6.096]
[1740301968934,11.57428655,171.86,171.85,0.063]
[1740301969244,11.07428655,171.86,171.85,0.063]
[1740301971720,81.0,171.87,171.85,0.063]
[1740301973657,92.57428655,171.87,171.85,0.063]